[Event "FIDE WSCC 50 2022"]
[Site "Assisi"]
[Date "2022.11.18"]
[Round "4.15"]
[White "Imanaliev, Taalaibek"]
[Black "Grant, Jonathan I M"]
[Result "0-1"]
[ECO "B10"]
[WhiteElo "2283"]
[BlackElo "2154"]
[Annotator "TA"]
[PlyCount "102"]
[EventDate "2022.11.14"]
[EventType "swiss"]
[EventCountry "ITA"]
[SourceTitle "playchess.com"]
[Source "ChessBase"]
[SourceQuality "1"]
[TimeControl "40/5400+30:1800+30"]

{[%evp 14,102,-8,-15,-2,-15,10,-42,-26,-25,0,0,-28,-12,0,-99,-8,-12,-8,-6,0,-16,-14,-19,-19,-20,-19,-7,18,25,130,109,106,105,126,110,119,-216,-207,-231,-215,-209,-215,-255,-248,-290,-266,-269,-281,-269,-270,-282,-242,-234,-220,-230,-201,-236,-236,-312,-264,-297,-296,-294,-290,-396,-396,-396,-396,-396,-389,-387,-372,-374,-346,-381,-374,-519,-477,-518,-518,-616,-302,-601,-601,-779,-772,-29958,-29958,-29969,-29967]} 1. e4 {[%emt 0:00:15]} c6 {[%emt 0:01:33]} 2. d3 {[%emt 0:01:30]} d5 {[%emt 0:00:08]} 3. Nd2 {[%emt 0:00:08]} e5 {[%emt 0:00:19]} 4. Ngf3 {[%emt 0:00:50]} Bd6 {[%emt 0:00:22]} 5. g3 {[%emt 0:00:15]} Nf6 {[%emt 0:00:06]} 6. Bg2 {[%emt 0:00:12]} O-O {[%emt 0:00:11]} 7. O-O {[%emt 0:00:07]} Re8 {[%emt 0:00:12]} 8. Re1 {[%emt 0:01:01]} a5 {[%emt 0:02:14] B10: Caro-Kann: 2 d3 and 2 c4.} 9. a4 {[%emt 0:01:08]} Bg4 {[%emt 0:03:47] [#]} 10. Nf1 $146 {[%emt 0:09:32]} ({Better is} 10. h3 $11 Be6 11. exd5 Bxd5 12. Ne4) ({Predecessor:} 10. Nb3 d4 11. Bg5 Bb4 12. Rf1 h6 13. Bd2 Bxd2 14. Qxd2 b6 15. Nh4 c5 16. h3 {0-1 (51) Khudaverdian,B (1770)-Heredia,J (1811) Montreal 2013}) 10... Na6 {[%emt 0:07:03] Black is slightly better.} 11. Bg5 {[%emt 0:10:03]} h6 {[%emt 0:06:36]} 12. Bxf6 {[%emt 0:01:38]} Qxf6 {[%emt 0:00:18]} ({But not} 12... gxf6 13. Ne3 Bh5 14. exd5 $16) 13. Ne3 {[%emt 0:00:25]} Be6 {[%emt 0:00:48]} 14. Nh4 {[%emt 0:07:57]} (14. exd5 $11 Bxd5 15. Nxd5 cxd5 16. c3) 14... Nc7 {[%emt 0:06:19] Black is more active.} (14... d4 $17 15. Nc4 Bxc4 16. dxc4 Bb4) 15. Nhf5 $11 {[%emt 0:00:36]} Bxf5 {[%emt 0:10:13]} 16. Nxf5 {[%emt 0:00:34]} Bc5 {[%emt 0:01:50]} 17. Qf3 {[%emt 0:10:08]} Rad8 {[%emt 0:08:13]} 18. Ne3 {[%emt 0:06:32]} Qxf3 {[%emt 0:08:50]} 19. Bxf3 {[%emt 0:00:10]} dxe4 {[%emt 0:02:16]} 20. Bxe4 {[%emt 0:00:24]} Nd5 {[%emt 0:16:10]} (20... Bxe3 $5 21. fxe3 g6 $11) 21. Nc4 {[%emt 0:05:04]} Nf6 {[%emt 0:08:10]} (21... b6 $11 {keeps the balance.}) 22. Bf3 {[%emt 0:01:10]} e4 {[%emt 0:08:11]} 23. dxe4 {[%emt 0:05:39]} b5 {[%emt 0:04:47]} 24. Nxa5 {[%emt 0:17:02] Black must now prevent Nb7.} Rd2 {[%emt 0:00:23][%csl LRc2,LRf2]} 25. Nb3 $2 {[%emt 0:00:18][%mdl 8192] This costs White the game.} (25. Rf1 $16 {keeps the pressure on.}) 25... Bxf2+ $19 {[%emt 0:00:34][%cal Bc5f2,Bf2e1,Be1d2][%mdl 32]} 26. Kf1 {[%emt 0:00:24]} Bxe1 {[%emt 0:00:10][%mdl 64] [#] Discovered Attack} ({Not} 26... Rxc2 27. Re2 Rxe2 28. Kxe2 bxa4 29. Rxa4 $11) 27. Nxd2 {[%emt 0:00:09]} Bxd2 {[%emt 0:00:07]} 28. e5 {[%emt 0:01:58]} Rxe5 {[%emt 0:01:54]} 29. Bxc6 {[%emt 0:00:11]} bxa4 {[%emt 0:00:21]} 30. Rxa4 {[%emt 0:00:52]} Rc5 {[%emt 0:01:14][%csl LRc2,LRc6]} 31. Ra8+ {[%emt 0:00:19]} Kh7 {[%emt 0:00:05]} 32. Ba4 {[%emt 0:00:08]} Ra5 {[%emt 0:00:23]} 33. Rxa5 {[%emt 0:00:15]} Bxa5 {[%emt 0:00:01]} 34. c3 {[%emt 0:00:11]} Kg6 {[%emt 0:01:18]} 35. b4 {[%emt 0:00:19]} Bc7 {[%emt 0:00:14]} 36. c4 {[%emt 0:00:22]} Be5 {[%emt 0:01:31]} 37. c5 {[%emt 0:00:29]} Nd5 {[%emt 0:00:40]} 38. b5 {[%emt 0:00:23]} Bd4 {[%emt 0:00:53]} 39. c6 {[%emt 0:02:23]} Bb6 {[%emt 0:00:28]} 40. Bb3 {[%emt 0:00:18]} Nc7 {[%emt 0:00:50]} 41. Bc4 {[%emt 0:30:16]} Kf6 {[%emt 0:30:41]} 42. Ke2 {[%emt 0:00:19]} Ne8 {[%emt 0:00:00]} 43. Kf3 {[%emt 0:00:00]} Nd6 {[%emt 0:00:00]} 44. Bf1 {[%emt 0:00:00]} Ke5 {[%emt 0:00:00]} 45. h4 {[%emt 0:00:00]} Ne4 {[%emt 0:00:00] [#] And now ...Nd2+ would win.} 46. Bd3 {[%emt 0:00:00]} f5 {[%emt 0:00:00][%cal Bf7f5,Bf5f4][%mdl 32]} 47. Bc2 {[%emt 0:00:00]} Nc5 {[%emt 0:00:00]} (47... Nd6 $142 48. Bd3 Kd4) 48. g4 $2 {[%emt 0:00:00]} (48. h5) 48... Ne6 {[%emt 0:00:00] ( -> ...Nd4+)} 49. Bd3 {[%emt 0:00:00]} f4 {[%emt 0:00:00]} 50. h5 {[%emt 0:00:00]} Ng5+ {[%emt 0:00:00]} 51. Kg2 {[%emt 0:00:00]} Kd4 {[%emt 0:00:00] Weighted Error Value: White=0.60/Black=0.24 (precise)} 0-1

[Event "FIDE WSCC 50 2022"]
[Site "Assisi"]
[Date "2022.11.20"]
[Round "6.1"]
[White "Holzke, Frank"]
[Black "Novik, Maxim"]
[Result "1-0"]
[ECO "D87"]
[WhiteElo "2476"]
[BlackElo "2412"]
[Annotator "TA"]
[PlyCount "105"]
[EventDate "2022.11.14"]
[EventType "swiss"]
[EventCountry "ITA"]
[SourceTitle "playchess.com"]
[Source "ChessBase"]
[SourceQuality "1"]
[TimeControl "40/5400+30:1800+30"]

{[%evp 21,105,9,5,-33,-28,-29,0,0,0,0,0,0,0,0,0,0,0,0,0,-54,0,0,0,0,0,0,0,0,0,0,0,0,0,0,0,0,0,0,0,0,0,-6,0,0,0,0,0,0,0,0,0,0,13,0,4,3,70,76,94,80,142,139,161,145,256,258,263,253,247,303,411,427,1027,1170,1024,1103,29988,29986,29984,29985,29986,29987,29987,29988,29990,29989]} 1. d4 {[%emt 0:00:10]} Nf6 {[%emt 0:00:05]} 2. c4 {[%emt 0:00:13]} g6 {[%emt 0:00:03]} 3. Nc3 {[%emt 0:00:18]} d5 {[%emt 0:00:03]} 4. cxd5 {[%emt 0:00:11]} Nxd5 {[%emt 0:00:03]} 5. e4 {[%emt 0:00:12]} Nxc3 {[%emt 0:00:03]} 6. bxc3 {[%emt 0:00:11]} c5 {[%emt 0:00:24]} 7. Bc4 {[%emt 0:00:37]} Bg7 {[%emt 0:01:04]} 8. Ne2 {[%emt 0:00:15]} O-O {[%emt 0:00:13]} 9. O-O {[%emt 0:00:23]} Nc6 {[%emt 0:00:07]} 10. Be3 {[%emt 0:00:11]} Na5 {[%emt 0:03:14] 10...Bg4 is the recent fashion.} 11. Bd3 {[%emt 0:00:21]} b6 {[%emt 0:00:04]} 12. h4 {[%emt 0:02:08] [#] D87: Exchange Grünfeld: Classical Line: Variations without ...cxd4.} e5 $146 {[%emt 0:04:14][%cal Be7e5,Be5d4,Bd4d3][%mdl 32]} ({Predecessor:} 12... Bb7 13. h5 Rc8 14. Rc1 Qd7 15. Qd2 Rfd8 16. f3 Qa4 17. d5 e6 18. c4 exd5 19. exd5 Re8 {0-1 (97) Vantika,A (2286)-Gurel,E (2168) Chess.com INT 2020}) 13. Bg5 {[%emt 0:04:02]} Bf6 {[%emt 0:06:09]} 14. Qd2 {[%emt 0:09:07] The position is equal.} cxd4 {[%emt 0:07:00]} 15. cxd4 {[%emt 0:00:31]} exd4 {[%emt 0:00:12]} 16. Qf4 {[%emt 0:08:09]} Bxg5 {[%emt 0:04:31]} 17. hxg5 {[%emt 0:00:13]} Nb7 {[%emt 0:19:54]} 18. Rfd1 {[%emt 0:13:44]} Nc5 {[%emt 0:00:58]} 19. Bc4 {[%emt 0:00:24]} d3 {[%emt 0:05:16]} 20. Nc3 {[%emt 0:14:12]} ({White should try} 20. Qe3 $11) 20... Be6 {[%emt 0:04:27]} (20... Qd4 $1 $15 21. Bd5 Qxc3 $1 22. Bxa8 Bg4 $1 23. Qxg4 Rxa8) 21. Nd5 $11 {[%emt 0:00:52]} Bxd5 {[%emt 0:01:14]} 22. exd5 {[%emt 0:00:17]} Qd7 {[%emt 0:12:51]} 23. Bxd3 {[%emt 0:01:30]} Rad8 {[%emt 0:00:27]} 24. Bc4 {[%emt 0:03:38]} Qd6 {[%emt 0:00:18]} 25. Qxd6 {[%emt 0:00:16]} Rxd6 {[%emt 0:00:00]} 26. Re1 {[%emt 0:00:26]} Rfd8 {[%emt 0:02:24]} 27. Re7 {[%emt 0:07:17]} R8d7 {[%emt 0:00:42]} 28. Re8+ {[%emt 0:02:16]} Kg7 {[%emt 0:00:01]} 29. Rae1 {[%emt 0:00:39]} Rd8 {[%emt 0:05:12]} 30. R8e7 {[%emt 0:04:04]} R8d7 {[%emt 0:00:05]} 31. R7e3 {[%emt 0:02:45]} Rd8 {[%emt 0:04:33]} 32. a3 {[%emt 0:01:42]} h6 {[%emt 0:00:21]} 33. gxh6+ {[%emt 0:00:36]} Kxh6 {[%emt 0:00:01]} 34. f4 {[%emt 0:00:45]} Kg7 {[%emt 0:02:22]} 35. Kf2 {[%emt 0:02:14]} a6 {[%emt 0:01:18]} 36. Kf3 {[%emt 0:00:45]} R8d7 {[%emt 0:00:35]} 37. g4 {[%emt 0:01:06]} b5 {[%emt 0:02:00]} 38. Ba2 {[%emt 0:00:23]} f5 {[%emt 0:00:29]} (38... Na4 $11) 39. gxf5 $14 {[%emt 0:04:11]} gxf5 {[%emt 0:00:01] [#]} 40. Re5 $1 {[%emt 0:01:07]} Kf6 {[%emt 0:00:35]} (40... b4 $142) 41. Rh1 $16 {[%emt 0:31:43]} Ne4 {[%emt 0:31:25]} 42. Rh5 {[%emt 0:01:57]} Nc3 {[%emt 0:06:17] [#]} (42... Kg7 $16 {was called for.} 43. Rexf5 (43. Rhxf5 Nc3 $16) 43... Nf6) 43. Bb3 $1 $18 {[%emt 0:06:12]} (43. Rexf5+ $6 Ke7 $16) (43. Rhxf5+ $6 Kg7 $16) 43... a5 {[%emt 0:01:00]} 44. Ke3 {[%emt 0:07:07]} ({Much less strong is} 44. Rhxf5+ Kg7 45. Re1 Rf7 46. Rg5+ Kf8 $16) (44. Rexf5+ $6 Ke7 45. Rh8 a4 46. Re5+ Kf7 $16) 44... a4 {[%emt 0:04:25]} 45. Kd4 {[%emt 0:02:11]} (45. Rexf5+ Ke7 46. Re5+ Kd8 $16) ({Don't do} 45. Rhxf5+ Kg7 46. Kd4 axb3) 45... Nb1 {[%emt 0:00:00]} 46. Bc2 {[%emt 0:00:00]} Nxa3 {[%emt 0:00:00]} (46... Nd2 $142 47. Bxf5 Rd8) 47. Bxf5 {[%emt 0:00:00] Rh6+ is the strong threat.} Rd8 {[%emt 0:00:00]} 48. Be6 {[%emt 0:00:00] White wants to mate with Ref5+.} Ra6 {[%emt 0:00:00]} 49. Kc5 {[%emt 0:00:00] White mates.} Rxe6 {[%emt 0:00:00]} 50. Rxe6+ {[%emt 0:00:00]} Kg7 {[%emt 0:00:00]} 51. f5 {[%emt 0:00:00]} Rc8+ {[%emt 0:00:00]} 52. Rc6 {[%emt 0:00:00]} Rg8 {[%emt 0:00:00]} 53. Rg5+ {[%emt 0:00:00] Weighted Error Value: White=0.04 (flawless) /Black=0.33} 1-0

[Event "FIDE WSCC 50 2022"]
[Site "Assisi"]
[Date "2022.11.20"]
[Round "6.2"]
[White "Lima, Darcy"]
[Black "Antonio, Rogelio Jr"]
[Result "1-0"]
[ECO "E11"]
[WhiteElo "2415"]
[BlackElo "2397"]
[Annotator "TA"]
[PlyCount "80"]
[EventDate "2022.11.14"]
[EventType "swiss"]
[EventCountry "ITA"]
[SourceTitle "playchess.com"]
[Source "ChessBase"]
[SourceQuality "1"]
[TimeControl "40/5400+30:1800+30"]

{[%evp 18,80,19,24,56,35,31,40,89,85,94,94,100,97,80,92,106,83,140,125,142,137,156,149,164,182,181,143,232,158,230,210,225,237,246,216,254,212,212,218,211,158,290,295,329,308,439,450,437,436,384,360,316,277,504,521,1148,1140,1108,776,686,683,816,359,359]} 1. d4 {[%emt 1:31:00]} Nf6 {[%emt 0:00:23]} 2. c4 {[%emt 0:00:22]} e6 {[%emt 0:07:26]} 3. Nf3 {[%emt 0:01:14]} Bb4+ {[%emt 0:00:21]} 4. Bd2 {[%emt 0:00:30]} Qe7 {[%emt 0:00:29]} 5. g3 {[%emt 0:00:31]} Nc6 {[%emt 0:00:17]} 6. Nc3 {[%emt 0:00:38]} a5 {[%emt 0:07:58]} 7. Bg2 {[%emt 0:07:39]} O-O {[%emt 1:17:06]} 8. O-O {[%emt 0:00:43]} d6 {[%emt 0:00:04]} 9. Rc1 {[%emt 0:13:36]} Bxc3 {[%emt 0:02:14]} 10. Bxc3 {[%emt 0:04:03] [#]} Nb4 $146 {[%emt 1:15:31] Inhibits d5. E11: Bogo-Indian.} ({Predecessor:} 10... e5 11. d5 Nb8 12. c5 Nbd7 13. cxd6 cxd6 14. Nd2 b5 15. b3 Nb6 16. e4 b4 17. Bb2 Ba6 18. Re1 {½-½ (32) Riazantsev,A (2671)-Bologan,V (2640) Doha 2016}) 11. Ra1 {[%emt 0:01:04]} Ne4 {[%emt 0:02:37]} 12. Be1 {[%emt 0:05:25]} c5 {[%emt 0:02:15]} (12... e5 $14 {feels stronger.}) 13. dxc5 $16 {[%emt 0:11:11] White leaves nothing to chance now.} dxc5 {[%emt 0:06:05] [#]} 14. Ne5 $1 {[%emt 0:00:10]} Nd6 {[%emt 0:00:07]} 15. a3 {[%emt 0:00:24]} Nc6 {[%emt 0:00:05]} 16. Nxc6 {White is more active.} bxc6 {[%emt 0:00:02]} 17. b3 {[%emt 0:06:20]} a4 {[%emt 0:00:41]} (17... Ra6 $142) 18. Bxc6 {[%emt 0:01:03]} ({Much less strong is} 18. bxa4 Ra6 $14) 18... Ra6 {[%emt 0:00:16]} 19. Bxa4 {[%emt 0:03:20] A strong pair of Bishops.} Rd8 {[%emt 0:00:08]} 20. Qc1 {[%emt 0:00:47]} e5 {[%emt 0:03:10]} 21. Bb5 {[%emt 0:13:27]} Nxb5 {[%emt 0:00:22]} 22. cxb5 {[%emt 0:00:01]} Rg6 {[%emt 0:00:08]} (22... Rh6 $16 {might work better.}) 23. Bc3 {[%emt 0:06:52]} Qb7 {[%emt 0:04:14]} (23... Bh3 $16) 24. Rd1 $18 {[%emt 0:22:57][%cal Rd1d8]} Re8 {[#]} 25. a4 $1 {[%emt 0:00:00]} h5 {[%emt 0:02:17]} 26. Qe3 {[%emt 0:00:00][%csl LRc5,LRe5]} h4 {[%emt 0:00:06]} 27. Qxc5 {[%emt 0:00:00]} hxg3 {[%emt 0:00:05]} 28. hxg3 {[%emt 0:00:00]} Qe4 {[%emt 0:02:16] White must now prevent ...Rh6.} 29. Qe3 {[%emt 0:00:00]} Qf5 {[%emt 0:00:01]} (29... Qh4 $16 {keeps fighting.} 30. Qf3 (30. Bxe5 $2 Bb7 $19) 30... e4) 30. Rd5 {[%emt 0:00:00]} f6 {[%emt 0:02:18]} 31. Qd3 {[%emt 0:00:00]} Qh5 {[%emt 0:02:54]} (31... Qg4 $142 32. Rc5 Qh5 33. Qd5+ Be6) 32. Rd8 {[%emt 0:00:00]} Rh6 {[%emt 0:00:00][%csl Gh6][%cal Rh5h1]} 33. Rxe8+ {[%emt 0:00:00]} Qxe8 {[%emt 0:00:02]} 34. Qd5+ {[%emt 0:02:43]} Be6 {[%emt 0:01:30]} 35. Qc6 {[%emt 0:00:21]} Qf7 {[%emt 0:00:01]} (35... Bd7 {was necessary.} 36. Qd5+ Be6) 36. Rd1 {[%emt 0:00:12] And now b6 would win.} Bxb3 {[%emt 0:03:29]} 37. Rd8+ {[%emt 0:00:06]} Kh7 {[%emt 0:00:01]} 38. Qe4+ {[%emt 0:02:08]} f5 {[%emt 0:02:00]} 39. Qa8 {[%emt 0:00:06]} Qe6 {[%emt 0:52:50]} 40. Rh8+ {[%emt 0:02:24]} (40. a5 $142) 40... Kg6 {[%emt 0:00:01] Weighted Error Value: White=0.29 (precise) /Black=0.38} 1-0

[Event "FIDE WSCC 50 2022"]
[Site "Assisi"]
[Date "2022.11.20"]
[Round "6.3"]
[White "Krizsany, Laszlo"]
[Black "Nevednichy, Vladislav"]
[Result "1/2-1/2"]
[ECO "D60"]
[WhiteElo "2371"]
[BlackElo "2499"]
[Annotator "TA"]
[PlyCount "103"]
[EventDate "2022.11.14"]
[EventType "swiss"]
[EventCountry "ITA"]
[SourceTitle "playchess.com"]
[Source "ChessBase"]
[SourceQuality "1"]
[TimeControl "40/5400+30:1800+30"]

{[%evp 17,103,8,10,0,0,-8,-8,-8,-8,-15,-21,-21,-8,-11,-11,-11,-14,-22,-18,-50,-49,-52,0,0,10,8,13,0,10,10,26,0,0,0,0,0,0,0,0,0,0,0,0,0,0,-23,-2,-31,-31,-31,-31,-31,0,0,0,0,41,28,33,18,18,18,18,25,33,33,33,33,33,33,33,33,33,33,33,0,33,33,33,0,33,0,0,0,0,0,0,0]} 1. d4 {[%emt 0:00:06]} d5 {[%emt 0:00:25]} 2. c4 {[%emt 0:00:17]} e6 {[%emt 0:00:07]} 3. Nc3 {[%emt 0:00:18]} Be7 {[%emt 0:00:17]} 4. Nf3 {[%emt 0:00:32]} Nf6 {[%emt 0:00:12]} 5. Bg5 {[%emt 0:00:37]} O-O {[%emt 0:00:18]} 6. e3 {[%emt 0:00:20]} Nbd7 {[%emt 0:00:37]} 7. cxd5 {[%emt 0:01:07]} Nxd5 {[%emt 0:02:01]} 8. Bxe7 {[%emt 0:01:50]} Qxe7 {[%emt 0:00:04]} 9. Nxd5 {[%emt 0:05:27]} exd5 {[%emt 0:00:31]} 10. Rc1 {[%emt 0:00:26] D60: Queen's Gambit Declined: Classical: Unusual White 7th moves.} Nf6 {[%emt 0:01:47]} 11. Bd3 {[%emt 0:06:12] [#]} Bg4 $146 {[%emt 0:05:21]} ({Predecessor:} 11... b6 12. Qc2 Bd7 13. O-O Rac8 14. Ba6 Rce8 15. Qxc7 Bf5 16. Qxe7 Rxe7 17. Ne5 Rfe8 {1-0 (34) Tal,M (2630)-Rothman,M (1635) Boston 1988}) 12. Qc2 {[%emt 0:04:46]} Bxf3 {[%emt 0:04:20]} 13. gxf3 {[%emt 0:00:07]} c6 {[%emt 0:00:06]} 14. O-O {[%emt 0:05:33]} g6 {[%emt 0:14:57]} 15. Qc5 {[%emt 0:11:34]} Qe6 {[%emt 0:05:45]} 16. b4 {[%emt 0:00:23]} Nd7 {[%emt 0:04:29][%cal Bf6d7,Bd7f8,Bf8e6][%mdl 32]} 17. Qa5 {[%emt 0:05:20]} Rfc8 {[%emt 0:10:04]} 18. Rc3 {[%emt 0:08:01]} a6 {[%emt 0:02:06]} 19. Rfc1 {[%emt 0:01:49]} h5 {[%emt 0:01:58]} (19... Qf6 $15) 20. Kg2 $11 {[%emt 0:05:18]} Qd6 {[%emt 0:05:04]} 21. Qa4 {[%emt 0:03:08]} Nf8 {[%emt 0:02:24]} 22. a3 {[%emt 0:04:29]} Ne6 {[%emt 0:01:13]} 23. Qc2 {[%emt 0:00:47]} Rc7 {[%emt 0:03:45]} 24. Rg1 {[%emt 0:02:41]} (24. f4 {simplifies} f5 25. Rg1 Rg7 26. Kh1) 24... a5 {[%emt 0:08:29]} 25. Qb1 {[%emt 0:04:36]} ({Don't go for} 25. Bxg6 $2 fxg6 26. b5 Ng7 $19) 25... axb4 {[%emt 0:01:16]} 26. axb4 {[%emt 0:00:07]} Ra4 {[%emt 0:04:30]} 27. Rb3 {[%emt 0:00:12]} b5 {[%emt 0:02:51]} 28. f4 {[%emt 0:01:36]} f5 {[%emt 0:03:10]} 29. Kh1 {[%emt 0:04:48][%csl LRf5,LRg6]} Rg7 {[%emt 0:00:57]} 30. Qc2 {[%emt 0:01:48]} Nd8 {[%emt 0:01:19]} 31. Qc3 {[%emt 0:01:57]} Kf8 {[%emt 0:00:57]} 32. Ra3 {[%emt 0:05:43]} Rga7 {[%emt 0:02:45]} 33. Rga1 {[%emt 0:01:12]} Rxa3 {[%emt 0:04:02]} 34. Rxa3 {[%emt 0:00:03]} Qe7 {[%emt 0:01:04]} 35. Ra5 {[%emt 0:05:10]} Kf7 {[%emt 0:01:01]} 36. Kg2 {[%emt 0:01:12]} Kf6 {[%emt 0:03:34]} 37. Qa1 {[%emt 0:02:30]} Rc7 {[%emt 0:00:10]} 38. Ra8 {[%emt 0:02:15]} Nf7 {[%emt 0:01:23]} 39. Qa5 {[%emt 0:03:35]} (39. Qc3 {with more complications.} Nd6 40. Qc5 Ke6 41. Kf1) 39... Nd6 {[%emt 0:01:13]} 40. Qb6 {[%emt 0:01:06]} Kf7 {[%emt 0:02:16]} 41. Kf1 {[%emt 0:06:14]} Qd7 {[%emt 0:04:35]} 42. Qb8 {[%emt 0:04:07] [#] Hoping for Qh8.} Rc8 {[%emt 0:04:17] Inhibits Qh8.} 43. Ra7 $1 {[%emt 0:01:57]} Rxb8 {[%emt 0:00:16]} 44. Rxd7+ $14 {[%emt 0:00:03][%mdl 4096] Endgame KRB-KRN} Ke6 {[%emt 0:00:03]} 45. Rg7 {[%emt 0:01:56]} Kf6 {[%emt 0:00:28]} 46. Rd7 {[%emt 0:00:59]} Ne8 {[%emt 0:01:56]} (46... Ke6 $5 {[%cal Re6d7]} 47. Rg7 Kf6 $11) 47. Ra7 {[%emt 0:01:05] Black must now prevent Ra6.} Nd6 {[%emt 0:10:30]} 48. Rd7 {[%emt 0:00:30][%cal Ba7d7,Bd7d8,Bd8g8][%mdl 32]} (48. Ra6 $5) 48... Nc8 49. Rd8 (49. Rc7 $5 {[%cal Rc7c6]} Ne7 50. Ra7 $11) 49... Ra8 {The position is equal.} 50. Kg2 Ke7 51. Rg8 Kf7 52. Rd8 {Weighted Error Value: White=0.06 (flawless) /Black=0.07 (flawless)} 1/2-1/2

[Event "FIDE WSCC 50 2022"]
[Site "Assisi"]
[Date "2022.11.20"]
[Round "6.4"]
[White "Morovic Fernandez, Ivan"]
[Black "Prie, Eric"]
[Result "1-0"]
[ECO "B01"]
[WhiteElo "2480"]
[BlackElo "2356"]
[Annotator "TA"]
[PlyCount "79"]
[EventDate "2022.11.14"]
[EventType "swiss"]
[EventCountry "ITA"]
[SourceTitle "playchess.com"]
[Source "ChessBase"]
[SourceQuality "1"]
[TimeControl "40/5400+30:1800+30"]

{[%evp 10,79,33,25,37,30,32,33,31,30,33,12,18,25,43,44,50,45,25,27,82,77,73,34,39,33,21,29,25,41,25,21,23,28,36,39,92,82,82,60,61,0,82,72,73,64,69,42,110,57,75,0,103,81,150,152,202,204,162,190,1070,1057,1171,518,331,151,29989,202,202,187,266,240]} 1. e4 {[%emt 0:00:18]} d5 {[%emt 0:00:07]} 2. exd5 {[%emt 0:00:09]} Qxd5 {[%emt 0:00:10]} 3. Nc3 {[%emt 0:00:06]} Qa5 {[%emt 0:00:13]} 4. d4 {[%emt 0:00:14]} Nf6 {[%emt 0:00:09]} 5. Nf3 {[%emt 0:00:05]} Bf5 {[%emt 0:00:10]} 6. Bd2 {[%emt 0:00:43]} e6 {[%emt 0:00:12] outshines the older 6...c6. B01: Scandinavian Defence.} 7. Ne5 {[%emt 0:02:25]} Qb6 {[%emt 0:00:09][%csl LRb2,LRd4]} 8. Qf3 $1 {[%emt 0:00:20]} c6 {[%emt 0:00:07] White is slightly better.} (8... Qxd4 9. Bb5+ c6 10. Nxc6 $1 Nxc6 11. Bxc6+ Nd7 12. Be3 $16) 9. O-O-O {[%emt 0:00:10] Hoping for g4.} Nbd7 {[%emt 0:00:10]} 10. Bd3 {[%emt 0:00:36]} Bxd3 {[%emt 0:00:14]} (10... Qxd4 $2 11. Nxd7 Bg4 12. Nxf6+ gxf6 13. Qg3 Bxd1 14. Rxd1 $18) 11. Qxd3 {[%emt 0:00:06] [#]} Rd8 $146 {[%emt 0:00:10] Strongly threatening ...Nxe5.} ({Predecessor:} 11... Bb4 12. Qg3 g6 13. Nxd7 Nxd7 14. Ne4 Bxd2+ 15. Rxd2 O-O 16. h4 Qa5 17. a3 Qd5 {1-0 (47) Villanueva,M (2476)-Bertona,F (2408) Buenos Aires 2022}) 12. Qg3 {[%emt 0:02:10]} Qxd4 {[%emt 0:02:20]} 13. Nxd7 {[%emt 0:00:22]} Qxd7 {[%emt 0:00:43]} (13... Rxd7 $2 14. Be3 Bd6 15. Qxg7 $18) 14. Rhe1 {[%emt 0:00:29]} h5 {[%emt 0:30:27]} (14... Rg8 $11 {remains equal.}) 15. Bg5 $16 {[%emt 0:20:14]} h4 {[%emt 0:03:32]} 16. Qf3 {[%emt 0:11:21] White is much more active.} (16. Rxd7 hxg3 17. Rxd8+ Kxd8 18. hxg3 Kc7 $15) 16... Qc7 {[%emt 0:06:17]} (16... Qe7 $2 17. Ne4 Rh6 18. Rxd8+ Kxd8 19. Rd1+ Kc8 20. Nd6+ Kb8 21. Bf4 $18) 17. Rxd8+ {[%emt 0:10:34]} Qxd8 {[%emt 0:00:15]} 18. Rd1 {[%emt 0:00:47]} Qc7 {[%emt 0:12:33]} 19. Bxf6 {[%emt 0:03:13]} gxf6 {[%emt 0:00:10]} 20. Ne4 {[%emt 0:00:18]} Be7 {[%emt 0:09:28]} 21. Nxf6+ {[%emt 0:00:57]} Bxf6 {[%emt 0:02:50]} 22. Qxf6 $11 {[%emt 0:00:03][%mdl 4096] Endgame KQR-KQR} Rg8 {[%emt 0:00:30]} (22... Rh5 $14) 23. f4 $36 {[%emt 0:06:27][%mdl 2048] Keeping Black busy.} (23. Qxh4 Rxg2 24. f4 (24. Qh8+ Ke7 $11) 24... Qb6 $11) 23... Qe7 {[%emt 0:11:25]} 24. Qe5 {[%emt 0:00:47] White threatens Qb8+ and mate.} f5 {[%emt 0:03:32]} 25. Rd6 {[%emt 0:06:55]} (25. Qe2 $14) 25... Rg6 {[%emt 0:00:15]} (25... Kf7 $11) 26. Qh8+ {[%emt 0:17:44]} Kf7 {[%emt 0:00:20] [#]} 27. Rd2 {[%emt 0:00:50]} Rg8 {[%emt 0:03:49]} 28. Qh5+ {[%emt 0:00:42]} Rg6 {[%emt 0:00:27]} (28... Kg7 $14) 29. Qd1 {[%emt 0:00:52]} (29. a3 $16) 29... Ke8 {[%emt 0:00:25]} 30. Qh5 {[%emt 0:02:39]} Kf7 {[%emt 0:00:15]} 31. g3 {[%emt 0:01:00]} Kg7 {[%emt 0:03:20] [#]} (31... a6 $142) 32. Qd1 $1 $16 {[%emt 0:00:47] Threatens to win with Rd7.} (32. gxh4 Rg1+ 33. Rd1 Qc5 $11) (32. Qxh4 Qxh4 33. gxh4 Kf6 $11) 32... Qc5 {[%emt 0:00:10]} (32... Kh6 $16 {is a better defense.}) 33. Rd7+ $18 {[%emt 0:01:28]} (33. gxh4 $2 Rg1 34. c3 (34. Rd7+ $2 Kf6 $19) 34... Rxd1+ $19) 33... Kh6 {[%emt 0:00:08]} 34. Qe1 {[%emt 0:02:54]} (34. gxh4 $2 Qe3+ 35. Kb1 Rg1 $19) (34. Rxb7 hxg3 35. hxg3 Qe3+ 36. Qd2 (36. Kb1 Rxg3 37. Qh1+ Rh3 $11) 36... Qg1+ 37. Qd1 Qe3+ 38. Qd2 (38. Kb1 Rxg3 39. Qh1+ Rh3 $11) 38... Qg1+ 39. Qd1 Qe3+ $11) 34... Qc4 $2 {[%emt 0:09:10]} (34... b6 35. b4 (35. Rxa7 Qd5 $18) 35... Qf8 36. Rxa7 (36. gxh4 Qe8 $16) 36... Qh8) 35. Qe5 {[%emt 0:03:51][%cal Re5h8]} Kh5 {[%emt 0:00:11]} 36. Rh7+ {[%emt 0:01:02]} (36. Qh8+ $142 Kg4 37. Qh7) 36... Kg4 {[%emt 0:00:55]} 37. Qe3 {[%emt 0:03:07]} ({Weaker is} 37. Rxh4+ Kf3 38. b3 (38. Qe1 Qxa2 39. Qf1+ Ke3 $14) 38... Qe4 39. Qc3+ Qe3+ 40. Kb2 Qxc3+ 41. Kxc3 c5 $18) (37. Qe1 $18 {Intending Qf2 and mate.} Kf3 38. Rd7 (38. gxh4 Qxf4+ 39. Kb1 Qe3 $17) (38. Rxh4 Qxa2 39. Qc3+ Kf2 $14) (38. Rxb7 Kg2 $16)) 37... Kh3 $2 {[%emt 0:02:20]} (37... Qf1+ $16 38. Kd2 Kh3) 38. Rxh4+ $2 {[%emt 0:01:02]} (38. Qf2 {mates} Rg4 39. Rxh4+ Rxh4 40. gxh4 Qf1+ 41. Qxf1+ Kxh2 42. h5 Kg3 43. h6) 38... Kg2 {[%emt 0:00:06]} 39. b3 {[%emt 0:00:28]} Qe4 {[%emt 0:00:23]} (39... Qf1+ $142 40. Kb2 Qf2 41. Qxf2+ Kxf2) 40. Qd2+ {[%emt 0:00:20] Weighted Error Value: White=0.56/Black=0.36} ({Don't take} 40. Qxa7 $6 Rg7 $18) 1-0